Workbook

Sheet ACCUEIL

Sheet BD2017
R2: 2017 | S2: =R2 -> 2017 | T2: =S2 -> 2017 | U2: 2017 | V2: 2017 | W2: 2017 | X2: 2017 | Y2: 2017 | Z2: 2017 | AA2: 2017 | AB2: 2017 | AC2: 2017 | AD2: 2017 | AE2: 2017 | AF2: 2017 | AG2: 2017 | AH2: 2017 | AI2: 2017 | AJ2: 2017 | AK2: 2017 | AL2: 2017 | AM2: 2017 | AN2: =AM2 -> 2017 | AO2: 2017 | AP2: 2017 | AQ2: 2017 | AR2: 2017 | AS2: 2017 | AT2: 2017 | AU2: 2017 | AV2: 2017 | AW2: 2017 | AX2: 2017 | AY2: 2017 | AZ2: 2017 | BA2: 2017 | BB2: 2017 | BC2: 2017 | BD2: 2017 | BE2: 2017 | BF2: 2017 | BG2: 2017 | BH2: =BG2 -> 2017 | BI2: 2017 | BJ2: 2017 | BK2: 2017 | BL2: 2017 | BM2: 2017 | BN2: 2017 | BO2: 2017 | BP2: 2017 | BQ2: 2017 | BR2: 2017 | BS2: 2017 | BT2: 2017 | BU2: 2017 | BV2: 2017 | BW2: 2017 | BX2: 2017 | BY2: 2017 | BZ2: 2017 | CA2: 2017 | CB2: =CA2 -> 2017 | CC2: 2017 | CD2: 2017 | CE2: 2017 | CF2: 2017 | CG2: 2017 | CH2: 2017 | CI2: 2017 | CJ2: 2017 | CK2: 2017 | CL2: =+AT2 -> 2017 | CM2: =+AU2 -> 2017
R3: =R442 -> 46000 | S3: =S442 -> 2875000 | T3: =T442 -> 2901000 | V3: =V442 -> 184000 | X3: =X442 -> 24 | Y3: 20000 | Z3: 1 | AA3: 3 | AB3: 92000 | AC3: 0 | AE3: =AE442 -> 0 | AF3: 0 | AG3: 0 | AH3: 0 | AJ3: 0 | AK3: 0 | AL3: 0 | AM3: 0 | AO3: 0 | AP3: 0 | AQ3: 0 | AR3: 0 | AT3: 0 | AU3: 0 | AV3: 0 | AW3: 0 | AY3: 0 | AZ3: 0 | BA3: 0 | BB3: 0 | BD3: 0 | BE3: 0 | BF3: 0 | BG3: 0 | BI3: 0 | BJ3: 0 | BK3: 0 | BL3: 0 | BN3: 0 | BO3: 0 | BP3: 0 | BQ3: 0 | BS3: 0 | BT3: 0 | BU3: 0 | BV3: 0 | BX3: 0 | BY3: 0 | BZ3: 0 | CA3: 0 | CC3: 0 | CD3: 0 | CE3: 0 | CF3: 0 | CH3: 0 | CI3: 0 | CJ3: 0 | CK3: 0 | CL3: =CL442 -> 0 | CM3: 2605000
R4: cotisation S | S4: 5000 | T4: TOTAL ENCAISSE : | V4: =V3+Y3+AB3+CL3 -> 296000 | AB4: Ouvrir
R5: cotisation D | S5: 10000 | T5: TOTAL IMPAYES : | V5: =T3-V4 -> 2605000 | AB5: Fermer | AF5: JANVIER | AH5: Janvier | AK5: FEVRIER | AM5: Février | AP5: MARS | AR5: Mars | AU5: AVRIL | AW5: Avril | AZ5: MAI | BB5: Mai | BE5: JUIN | BG5: Juin | BJ5: JUILLET | BL5: Juillet | BO5: AOUT | BQ5: Août | BT5: SEPTEMBRE | BV5: Septembre | BY5: OCTOBRE | CA5: Octobre | CD5: NOVEMBRE | CF5: Novembre | CI5: DECEMBRE | CK5: Décembre
A6: LOTS | B6: Date d'achat 3 | C6: Nom - Prénom 3 | D6: Date d'achat 2 | E6: Nom - Prénom 2 | F6: OBSERVATIONS | G6: Date d'achat 1 | H6: NOM - Prénom 1 | I6: ADRESSE | J6: BP | K6: CP | L6: COMMUNE | M6: TRI | N6: @ | O6: TEL | P6: TEL | Q6: FAX | R6: ARRIERES à payer | S6: MONTANT COTISATION | T6: TOTAL à payer | U6: DATE DU PAIEMENT | V6: Montant CHEQUES | W6: CHEQUE N° | X6: Banque | Y6: Montant ESPECES | Z6: VIR Proprio | AA6: VIR Notaire | AB6: Montant VIREMENTS | AC6: Paiement échelonné | AD6: date | AE6: Virement | AF6: chèque n° | AG6: Banque | AH6: Montant | AI6: date | AJ6: Virement | AK6: chèque n° | AL6: Banque | AM6: Montant | AN6: date | AO6: Virement | AP6: chèque n° | AQ6: Banque | AR6: Montant | AS6: date | AT6: Virement | AU6: chèque n° | AV6: Banque | AW6: Montant | AX6: date | AY6: Virement | AZ6: chèque n° | BA6: Banque | BB6: Montant | BC6: date | BD6: Virement | BE6: chèque n° | BF6: Banque | BG6: Montant | BH6: date | BI6: Virement | BJ6: chèque n° | BK6: Banque | BL6: Montant | BM6: date | BN6: Virement | BO6: chèque n° | BP6: Banque | BQ6: Montant | BR6: date | BS6: Virement | BT6: chèque n° | BU6: Banque | BV6: Montant | BW6: date | BX6: Virement | BY6: chèque n° | BZ6: Banque | CA6: Montant | CB6: date | CC6: Virement | CD6: chèque n° | CE6: Banque | CF6: Montant | CG6: date | CH6: Virement | CI6: chèque n° | CJ6: Banque | CK6: Montant | CL6: TOTAL Paiements X FOIS | CM6: RESTE A PAYER
A7: 1A | H7: A | J7: 2044 | M7: mail | R7: 0 | S7: =IF(OR(COUNTIF(A7,"*A*"),COUNTIF(A7,"*B*"),COUNTIF(A7,"*C*")),$S$4,$S$5) -> 5000 | T7: =R7+S7 -> 5000 | V7: 5000 | CL7: =AH7+AM7+AR7+AW7+BB7+BG7+BL7+BQ7+BV7+CA7+CF7+CK7 -> 0 | CM7: =T7-(V7+Y7+AB7+AH7+AM7+AR7+AW7+BB7+BG7+BL7+BQ7+BV7+CA7+CF7+CK7) -> 0
A8: 1B | G8: 2016-10-21 | H8: B | J8: 2506 | M8: BP | R8: 0 | S8: =IF(OR(COUNTIF(A8,"*A*"),COUNTIF(A8,"*B*"),COUNTIF(A8,"*C*")),$S$4,$S$5) -> 5000 | T8: =R8+S8 -> 5000 | CL8: =AH8+AM8+AR8+AW8+BB8+BG8+BL8+BQ8+BV8+CA8+CF8+CK8 -> 0 | CM8: =T8-(V8+Y8+AB8+AH8+AM8+AR8+AW8+BB8+BG8+BL8+BQ8+BV8+CA8+CF8+CK8) -> 5000
A9: 2A | G9: 2016-12-22 | H9: C | M9: mail | R9: 0 | S9: =IF(ISNUMBER(A9),$S$5,$S$4) -> 5000 | T9: 5000 | CL9: 0 | CM9: 5000
A10: 2B | H10: D | J10: 437 | M10: mail | R10: 0 | S10: 5000 | T10: 5000 | CL10: 0 | CM10: 5000
A11: 3A | H11: E | J11: 2044 | M11: mail | R11: 0 | S11: 5000 | T11: 5000 | CL11: 0 | CM11: 5000
A12: 3B | H12: F | J12: 2044 | M12: mail | R12: 0 | S12: 5000 | T12: 5000 | CL12: 0 | CM12: 5000
A13: 4 | G13: 2017-08-08 | H13: G | R13: 0 | S13: 10000 | T13: 10000 | V13: 10000 | CL13: 0 | CM13: 0
A14: 5 | G14: 2016-11-23 | H14: H | M14: * | R14: 0 | S14: 10000 | T14: 10000 | CL14: 0 | CM14: 10000
A15: 6 | H15: I | J15: 2002 | M15: mail | R15: 0 | S15: 10000 | T15: 10000 | CL15: 0 | CM15: 10000
A16: 7A | H16: J | J16: 8104 | M16: mail | R16: 0 | S16: 5000 | T16: 5000 | CL16: 0 | CM16: 5000
A17: 7B | H17: K | J17: 2471 | M17: mail | R17: 0 | S17: 5000 | T17: 5000 | CL17: 0 | CM17: 5000
A18: 8A | H18: L | J18: 2521 | M18: mail | R18: 0 | S18: 5000 | T18: 5000 | CL18: 0 | CM18: 5000
A19: 8B | H19: M | J19: 13810 | M19: mail | R19: 0 | S19: 5000 | T19: 5000 | CL19: 0 | CM19: 5000
A20: 9A | H20: N | J20: 13493 | M20: mail | R20: 0 | S20: 5000 | T20: 5000 | CL20: 0 | CM20: 5000
A21: 9B | H21: O | J21: 1832 | M21: BP | R21: 0 | S21: 5000 | T21: 5000 | CL21: 0 | CM21: 5000
A22: 10A | H22: P | J22: 13099 | M22: mail | R22: 0 | S22: 5000 | T22: 5000 | U22: 2017-11-22 | V22: 5000 | W22: 2360801 | X22: SG | CL22: 0 | CM22: 0
A23: 10B | H23: Q | J23: 2548 | M23: mail | R23: 0 | S23: 5000 | T23: 5000 | U23: 2017-11-22 | V23: 5000 | W23: 2360801 | CL23: 0 | CM23: 0
A24: 11A | H24: R | M24: mail | R24: 0 | S24: 5000 | T24: 5000 | CL24: 0 | CM24: 5000
A25: 11B | H25: S | J25: 15287 | M25: mail | R25: 0 | S25: 5000 | T25: 5000 | CL25: 0 | CM25: 5000
A26: 12A | H26: T | J26: 8104 | M26: mail | R26: 0 | S26: 5000 | T26: 5000 | CL26: 0 | CM26: 5000
A27: 12B | H27: U | M27: mail | R27: 0 | S27: 5000 | T27: 5000 | CL27: 0 | CM27: 5000
A28: 13 | H28: V | M28: mail | R28: 0 | S28: 10000 | T28: 10000 | CL28: 0 | CM28: 10000
A29: 14 | H29: W | M29: AP | R29: 0 | S29: 10000 | T29: 10000 | CL29: 0 | CM29: 10000
A30: 15 | H30: X | J30: 786 | M30: AP | R30: 0 | S30: 10000 | T30: 10000 | CL30: 0 | CM30: 10000
A31: 16 | H31: Y | J31: 308 | M31: mail | R31: 0 | S31: 10000 | T31: 10000 | CL31: 0 | CM31: 10000
A32: 17 | H32: Z | M32: mail | R32: 0 | S32: 10000 | T32: 10000 | CL32: 0 | CM32: 10000
A33: 18A | H33: A | J33: 1572 | M33: mail | R33: 0 | S33: 5000 | T33: 5000 | CL33: 0 | CM33: 5000
A34: 18B | H34: B | M34: mail | R34: 0 | S34: 5000 | T34: 5000 | U34: 2017-04-26 | V34: 5000 | W34: 0001350 | X34: SG | CL34: 0 | CM34: 0
A35: 19 | H35: C | J35: 2451 | M35: mail | R35: 0 | S35: 10000 | T35: 10000 | CL35: 0 | CM35: 10000
A36: 20 | H36: D | J36: 2834 | M36: mail | R36: 0 | S36: 10000 | T36: 10000 | CL36: 0 | CM36: 10000
A37: 21 | G37: 2016-07-01 | H37: E | J37: 2807 | M37: mail | R37: 0 | S37: 10000 | T37: 10000 | CL37: 0 | CM37: 10000
A38: 22 | G38: 2016-08-25 | H38: F | M38: mail | R38: 0 | S38: 10000 | T38: 10000 | U38: 2017-06-05 | AB38: 10000 | CL38: 0 | CM38: 0
A39: 23 | G39: 2016-10-26 | H39: G | M39: mail | R39: 0 | S39: 10000 | T39: 10000 | CL39: 0 | CM39: 10000
A40: 24 | H40: H | M40: mail | R40: 0 | S40: 10000 | T40: 10000 | CL40: 0 | CM40: 10000
A41: 25 | H41: I | M41: mail | R41: 0 | S41: 10000 | T41: 10000 | CL41: 0 | CM41: 10000
A42: 26A | H42: J | J42: 8104 | M42: mail | R42: 0 | S42: 5000 | T42: 5000 | CL42: 0 | CM42: 5000
A43: 26B | H43: K | J43: 8104 | M43: mail | R43: 0 | S43: 5000 | T43: 5000 | CL43: 0 | CM43: 5000
A44: 27 | H44: L | J44: 4223 | M44: mail | R44: 0 | S44: 10000 | T44: 10000 | CL44: 0 | CM44: 10000
A45: 28 | H45: M | J45: 8625 | M45: mail | R45: 0 | S45: 10000 | T45: 10000 | CL45: 0 | CM45: 10000
A46: 29 | H46: N | J46: 13655 | M46: BP | R46: 0 | S46: 10000 | T46: 10000 | CL46: 0 | CM46: 10000
A47: 30 | H47: O | J47: 4223 | M47: mail | R47: 0 | S47: 10000 | T47: 10000 | CL47: 0 | CM47: 10000
A48: 31 | H48: P | J48: 6068 | M48: mail | R48: 0 | S48: 10000 | T48: 10000 | U48: 2017-08-29 | AB48: 10000 | CL48: 0 | CM48: 0
A49: 32A | H49: Q | M49: mail | R49: 0 | S49: 5000 | T49: 5000 | CL49: 0 | CM49: 5000
A50: 32B | H50: R | M50: mail | R50: 0 | S50: 5000 | T50: 5000 | CL50: 0 | CM50: 5000
A51: 33A | H51: S | M51: mail | R51: 0 | S51: 5000 | T51: 5000 | CL51: 0 | CM51: 5000
A52: 33B | H52: T | J52: 889 | M52: mail | R52: 0 | S52: 5000 | T52: 5000 | CL52: 0 | CM52: 5000
A53: 34A | H53: U | M53: mail | R53: 0 | S53: 5000 | T53: 5000 | CL53: 0 | CM53: 5000
A54: 34B | H54: V | J54: 13820 | M54: mail | R54: 0 | S54: 5000 | T54: 5000 | CL54: 0 | CM54: 5000
A55: 35 | H55: W | J55: 1766 | M55: mail | R55: 0 | S55: 10000 | T55: 10000 | CL55: 0 | CM55: 10000
A56: 36 | H56: X | J56: 1223 | M56: mail | R56: 0 | S56: 10000 | T56: 10000 | U56: 2017-04-26 | V56: 10000 | W56: 7305244 | X56: BNC | CL56: 0 | CM56: 0
A57: 37 | H57: Y | J57: 1554 | M57: mail | R57: 0 | S57: 10000 | T57: 10000 | CL57: 0 | CM57: 10000
A58: 38 | H58: Z | J58: 400 | M58: mail | R58: 0 | S58: 10000 | T58: 10000 | CL58: 0 | CM58: 10000
A59: 39 | H59: A | M59: mail | R59: 0 | S59: 10000 | T59: 10000 | CL59: 0 | CM59: 10000
A60: 40A | H60: B | J60: 1875 | M60: mail | R60: 0 | S60: 5000 | T60: 5000 | U60: 2017-04-26 | V60: 5000 | W60: 7155242 | X60: BNC | CL60: 0 | CM60: 0
A61: 40B | H61: C | J61: 1875 | M61: mail | R61: 0 | S61: 5000 | T61: 5000 | U61: 2017-04-26 | V61: 5000 | W61: 7155242 | X61: BNC | CL61: 0 | CM61: 0
A62: 41A | H62: D | J62: 2840 | M62: BP | R62: 0 | S62: 5000 | T62: 5000 | CL62: 0 | CM62: 5000
A63: 41B | H63: E | J63: 13272 | M63: mail | R63: 0 | S63: 5000 | T63: 5000 | CL63: 0 | CM63: 5000
A64: 42A | H64: F | J64: 2738 | M64: mail | R64: 0 | S64: 5000 | T64: 5000 | CL64: 0 | CM64: 5000
A65: 42B | H65: G | J65: 2738 | M65: mail | R65: 0 | S65: 5000 | T65: 5000 | CL65: 0 | CM65: 5000
A66: 43A | H66: H | M66: mail | R66: 0 | S66: 5000 | T66: 5000 | CL66: 0 | CM66: 5000
A67: 43B | G67: 2017-08-11 | H67: I | M67: mail | R67: 0 | S67: 5000 | T67: 5000 | U67: 2017-08-11 | AB67: 5000 | CL67: 0 | CM67: 0
A68: 44 | H68: J | J68: 2419 | M68: mail | R68: 0 | S68: 10000 | T68: 10000 | CL68: 0 | CM68: 10000
A69: 45A | H69: K | J69: 697 | M69: mail | R69: 0 | S69: 5000 | T69: 5000 | CL69: 0 | CM69: 5000
A70: 45B | H70: L | J70: 697 | M70: mail | R70: 0 | S70: 5000 | T70: 5000 | CL70: 0 | CM70: 5000
A71: 46A | H71: M | M71: mail | R71: 0 | S71: 5000 | T71: 5000 | CL71: 0 | CM71: 5000
A72: 46B | H72: N | M72: mail | R72: 0 | S72: 5000 | T72: =R72+S72 -> 5000 | CL72: =AH72+AM72+AR72+AW72+BB72+BG72+BL72+BQ72+BV72+CA72+CF72+CK72 -> 0 | CM72: =T72-(V72+Y72+AB72+AH72+AM72+AR72+AW72+BB72+BG72+BL72+BQ72+BV72+CA72+CF72+CK72) -> 5000
A73: 47A | H73: O | M73: mail | R73: 0 | S73: =IF(ISNUMBER(A73),$S$5,$S$4) -> 5000 | T73: 5000 | U73: 2017-11-14 | V73: 5000 | X73: BNP | CL73: 0 | CM73: 0
A74: 47B | H74: P | M74: mail | R74: 0 | S74: 5000 | T74: 5000 | CL74: 0 | CM74: 5000
A75: 48A | H75: Q | M75: mail | R75: 0 | S75: 5000 | T75: 5000 | CL75: 0 | CM75: 5000
A76: 48B | H76: R | M76: mail | R76: 0 | S76: 5000 | T76: 5000 | CL76: 0 | CM76: 5000
A77: 49 | H77: S | J77: 1898 | M77: mail | R77: 0 | S77: 10000 | T77: 10000 | CL77: 0 | CM77: 10000
A78: 50A | H78: T | J78: 85 | M78: mail | R78: 0 | S78: 5000 | T78: 5000 | CL78: 0 | CM78: 5000
A79: 50B | H79: U | J79: 1961 | M79: mail | R79: 0 | S79: 5000 | T79: 5000 | CL79: 0 | CM79: 5000
A80: 51A | H80: V | J80: 691 | M80: mail | R80: 0 | S80: 5000 | T80: 5000 | CL80: 0 | CM80: 5000
A81: 51B | H81: W | J81: 691 | M81: mail | R81: 0 | S81: 5000 | T81: 5000 | CL81: 0 | CM81: 5000
A82: 52A | H82: X | J82: 588 | M82: mail | R82: 0 | S82: 5000 | T82: 5000 | U82: 2017-08-31 | AB82: 5000 | CL82: 0 | CM82: 0
A83: 52B | H83: Y | J83: 617 | M83: mail | R83: 0 | S83: 5000 | T83: 5000 | U83: 2017-04-26 | Y83: 5000 | CL83: 0 | CM83: 0
A84: 53A | H84: Z | J84: 331 | M84: mail | R84: 0 | S84: 5000 | T84: 5000 | U84: 2017-04-26 | V84: 5000 | W84: 2765839 | X84: SG | CL84: 0 | CM84: 0
A85: 53B | H85: A | J85: 2939 | M85: mail | R85: 0 | S85: 5000 | T85: 5000 | U85: 2017-04-26 | V85: 5000 | W85: 2102273 | X85: BCI | CL85: 0 | CM85: 0
H86: B | S86: 5000 | U86: 2017-11-22 | V86: 5000 | W86: 4529520 | X86: BCI | CL86: 0 | CM86: -5000
A87: 54A | H87: C | J87: 402 | M87: mail | R87: 0 | S87: 5000 | T87: 5000 | CL87: 0 | CM87: 5000
A88: 54B | H88: D | J88: 769 | M88: mail | R88: 0 | S88: 5000 | T88: 5000 | CL88: 0 | CM88: 5000
A89: 55A | H89: E | M89: mail | R89: 0 | S89: 5000 | T89: 5000 | CL89: 0 | CM89: 5000
A90: 55B | H90: F | J90: 3112 | M90: mail | R90: 0 | S90: 5000 | T90: 5000 | CL90: 0 | CM90: 5000
A91: 56A | H91: G | M91: mail | R91: 0 | S91: 5000 | T91: 5000 | CL91: 0 | CM91: 5000
A92: 56B | G92: 2016-10-14 | H92: H | J92: 30233 | M92: mail | R92: 0 | S92: 5000 | T92: 5000 | CL92: 0 | CM92: 5000
A93: 57 | H93: I | J93: 2523 | M93: mail | R93: 0 | S93: 10000 | T93: 10000 | CL93: 0 | CM93: 10000
A94: 58 | H94: J | J94: 6389 | M94: mail | R94: 0 | S94: 10000 | T94: 10000 | CL94: 0 | CM94: 10000
A95: 59A | H95: K | M95: mail | R95: 0 | S95: 5000 | T95: 5000 | CL95: 0 | CM95: 5000
A96: 59B | H96: L | M96: mail | R96: 0 | S96: 5000 | T96: 5000 | CL96: 0 | CM96: 5000
A97: 60A | H97: M | J97: 1438 | M97: mail | R97: 0 | S97: 5000 | T97: 5000 | CL97: 0 | CM97: 5000
A98: 60B | H98: N | J98: 1402 | M98: mail | R98: 0 | S98: 5000 | T98: 5000 | CL98: 0 | CM98: 5000
A99: 61A | G99: 2017-07-05 | H99: O | M99: mail | R99: 5000 | S99: 5000 | T99: 10000 | V99: 10000 | CL99: 0 | CM99: 0
A100: 61B | H100: P | J100: 10238 | M100: mail | R100: 0 | S100: 5000 | T100: 5000 | CL100: 0 | CM100: 5000
A101: 62A | H101: Q | J101: 2595 | M101: mail | R101: 0 | S101: 5000 | T101: 5000 | CL101: 0 | CM101: 5000
A102: 62B | H102: R | J102: 1815 | M102: mail | R102: 0 | S102: 5000 | T102: 5000 | CL102: 0 | CM102: 5000
A103: 63A | H103: S | J103: 14038 | M103: mail | R103: 0 | S103: 5000 | T103: 5000 | CL103: 0 | CM103: 5000
A104: 63B | H104: T | J104: 1913 | M104: mail | R104: 0 | S104: 5000 | T104: 5000 | CL104: 0 | CM104: 5000
A105: 64A | H105: U | J105: 3555 | M105: mail | R105: 0 | S105: 5000 | T105: 5000 | CL105: 0 | CM105: 5000
A106: 64B | H106: V | M106: mail | R106: 0 | S106: 5000 | T106: 5000 | CL106: 0 | CM106: 5000
A107: 65A | H107: W | J107: 8104 | M107: mail | R107: 0 | S107: 5000 | T107: 5000 | CL107: 0 | CM107: 5000
A108: 65B | H108: X | J108: 16380 | M108: mail | R108: 0 | S108: 5000 | T108: 5000 | CL108: 0 | CM108: 5000
A109: 66A | G109: 2016-10-13 | H109: Y | M109: mail | R109: 0 | S109: 5000 | T109: 5000 | CL109: 0 | CM109: 5000
A110: 66B | H110: Z | J110: 2057 | M110: mail | R110: 0 | S110: 5000 | T110: 5000 | CL110: 0 | CM110: 5000
A111: 67A | H111: A | M111: mail | R111: 0 | S111: 5000 | T111: 5000 | CL111: 0 | CM111: 5000
A112: 67B | H112: B | J112: 2394 | M112: mail | R112: 0 | S112: 5000 | T112: 5000 | CL112: 0 | CM112: 5000
A113: 68A | H113: C | J113: 1040 | M113: mail | R113: 0 | S113: 5000 | T113: 5000 | CL113: 0 | CM113: 5000
A114: 68B | H114: D | J114: 2057 | M114: mail | R114: 0 | S114: 5000 | T114: 5000 | CL114: 0 | CM114: 5000
A115: 69A | H115: E | J115: 351 | M115: mail | R115: 0 | S115: 5000 | T115: 5000 | CL115: 0 | CM115: 5000
A116: 69B | H116: F | J116: 2057 | M116: mail | R116: 0 | S116: 5000 | T116: 5000 | CL116: 0 | CM116: 5000
A117: 70A | H117: G | J117: 232 | M117: mail | R117: 0 | S117: 5000 | T117: 5000 | CL117: 0 | CM117: 5000
A118: 70B | H118: H | J118: 6442 | M118: mail | R118: 0 | S118: 5000 | T118: 5000 | CL118: 0 | CM118: 5000
A119: 71A | H119: I | J119: 7378 | M119: mail | R119: 0 | S119: 5000 | T119: 5000 | CL119: 0 | CM119: 5000
A120: 71B | H120: J | J120: 7378 | M120: mail | R120: 0 | S120: 5000 | T120: 5000 | CL120: 0 | CM120: 5000
A121: 72A | H121: K | M121: mail | R121: 0 | S121: 5000 | T121: 5000 | CL121: 0 | CM121: 5000
A122: 72B | H122: L | M122: mail | R122: 0 | S122: 5000 | T122: 5000 | CL122: 0 | CM122: 5000
A123: 73 | H123: M | J123: 1891 | M123: mail | R123: 0 | S123: 10000 | T123: 10000 | CL123: 0 | CM123: 10000
A124: 74A | H124: N | M124: mail | R124: 0 | S124: 5000 | T124: 5000 | CL124: 0 | CM124: 5000
A125: 74B | H125: O | R125: 0 | S125: 5000 | T125: 5000 | CL125: 0 | CM125: 5000
A126: 75A | H126: P | J126: 2057 | M126: mail | R126: 0 | S126: 5000 | T126: 5000 | CL126: 0 | CM126: 5000
A127: 75B | H127: Q | J127: 8634 | M127: mail | R127: 0 | S127: 5000 | T127: 5000 | CL127: 0 | CM127: 5000
A128: 76 | H128: R | J128: 1639 | M128: mail | R128: 0 | S128: 10000 | T128: 10000 | CL128: 0 | CM128: 10000
A129: 77 | H129: S | R129: 0 | S129: 10000 | T129: 10000 | CL129: 0 | CM129: 10000
A130: 78 | H130: T | J130: 2670 | M130: mail | R130: 0 | S130: 10000 | T130: 10000 | CL130: 0 | CM130: 10000
A131: 79 | H131: U | J131: 1907 | M131: mail | R131: 0 | S131: 10000 | T131: 10000 | CL131: 0 | CM131: 10000
A132: 80 | H132: V | J132: 11617 | M132: mail | R132: 0 | S132: 10000 | T132: 10000 | CL132: 0 | CM132: 10000
A133: 81 | H133: W | J133: 7966 | M133: mail | R133: 0 | S133: 10000 | T133: 10000 | CL133: 0 | CM133: 10000
A134: 82A | H134: X | M134: mail | R134: 0 | S134: 5000 | T134: 5000 | U134: 2017-04-26 | V134: 5000 | W134: 2091383 | X134: OPT | CL134: 0 | CM134: 0
A135: 82B | H135: Y | J135: 30349 | M135: mail | R135: 0 | S135: 5000 | T135: 5000 | CL135: 0 | CM135: 5000
A136: 83A | H136: Z | M136: mail | R136: 0 | S136: 5000 | T136: 5000 | CL136: =AH136+AM136+AR136+AW136+BB136+BG136+BL136+BQ136+BV136+CA136+CF136+CK136 -> 0 | CM136: =T136-(V136+Y136+AB136+AH136+AM136+AR136+AW136+BB136+BG136+BL136+BQ136+BV136+CA136+CF136+CK136) -> 5000
A137: 83B | G137: 2016-10-21 | H137: A | J137: 2798 | M137: mail | R137: 0 | S137: =IF(ISNUMBER(A137),$S$5,$S$4) -> 5000 | T137: =R137+S137 -> 5000 | CL137: 0 | CM137: 5000
A138: 84 | H138: B | J138: 171 | M138: mail | R138: 0 | S138: 10000 | T138: 10000 | CL138: 0 | CM138: 10000
A139: 85 | H139: C | J139: 31162 | M139: mail | R139: 0 | S139: 10000 | T139: 10000 | CL139: 0 | CM139: 10000
A140: 86A | H140: D | J140: 1742 | R140: 0 | S140: 5000 | T140: 5000 | CL140: 0 | CM140: 5000
A141: 86B | H141: E | J141: 1460 | M141: mail | R141: 0 | S141: 5000 | T141: 5000 | CL141: 0 | CM141: 5000
A142: 87A | H142: F | J142: 2546 | R142: 0 | S142: 5000 | T142: 5000 | CL142: 0 | CM142: 5000
A143: 87B | H143: G | J143: 920 | M143: mail | R143: 0 | S143: 5000 | T143: 5000 | CL143: 0 | CM143: 5000
A144: 88 | H144: H | M144: mail | R144: 0 | S144: 10000 | T144: 10000 | CL144: 0 | CM144: 10000
A145: 89 | H145: I | J145: 2596 | M145: mail | R145: 0 | S145: 10000 | T145: 10000 | CL145: 0 | CM145: 10000
A146: 90A | H146: J | M146: mail | R146: 0 | S146: 5000 | T146: 5000 | CL146: 0 | CM146: 5000
A147: 90B | H147: K | J147: 1520 | M147: mail | R147: 0 | S147: 5000 | T147: 5000 | CL147: 0 | CM147: 5000
A148: 91A | H148: L | J148: 2018 | M148: mail | R148: 0 | S148: 5000 | T148: 5000 | CL148: 0 | CM148: 5000
A149: 91B | H149: M | J149: 2018 | R149: 0 | S149: 5000 | T149: 5000 | CL149: 0 | CM149: 5000
A150: 92 | H150: N | J150: 2441 | M150: mail | R150: 0 | S150: 10000 | T150: 10000 | CL150: 0 | CM150: 10000
A151: 93 | H151: O | J151: 1850 | M151: mail | R151: 0 | S151: 10000 | T151: 10000 | CL151: 0 | CM151: 10000
A152: 94 | H152: P | J152: 4966 | M152: mail | R152: 0 | S152: 10000 | T152: 10000 | CL152: 0 | CM152: 10000
A153: 95 | H153: Q | J153: 2026 | M153: mail | R153: 0 | S153: 10000 | T153: 10000 | CL153: 0 | CM153: 10000
A154: 96 | H154: R | J154: 30085 | M154: mail | R154: 0 | S154: 10000 | T154: 10000 | U154: 2017-04-26 | V154: 10000 | W154: 7223111 | X154: BNC | CL154: 0 | CM154: 0
A155: 97 | H155: S | J155: 30580 | M155: mail | R155: 0 | S155: 10000 | T155: 10000 | CL155: 0 | CM155: 10000
A156: 98 | H156: T | J156: 7339 | M156: mail | R156: 0 | S156: 10000 | T156: 10000 | CL156: 0 | CM156: 10000
A157: 99 | H157: U | J157: 2456 | M157: mail | R157: 0 | S157: 10000 | T157: 10000 | CL157: 0 | CM157: 10000
A158: 100A | H158: V | J158: 13479 | M158: mail | R158: 0 | S158: 5000 | T158: 5000 | CL158: 0 | CM158: 5000
A159: 100B | H159: W | J159: 13479 | R159: 0 | S159: 5000 | T159: 5000 | CL159: 0 | CM159: 5000
A160: 101A | H160: X | J160: 2100 | M160: mail | R160: 0 | S160: 5000 | T160: 5000 | CL160: 0 | CM160: 5000
A161: 101B | H161: Y | J161: 2656 | M161: mail | R161: 0 | S161: 5000 | T161: 5000 | CL161: 0 | CM161: 5000
A162: 102A | H162: Z | J162: 1963 | M162: mail | R162: 0 | S162: 5000 | T162: 5000 | CL162: 0 | CM162: 5000
A163: 102B | H163: A | J163: 2381 | M163: mail | R163: 0 | S163: 5000 | T163: 5000 | CL163: 0 | CM163: 5000
A164: 103A | H164: B | M164: mail | R164: 0 | S164: 5000 | T164: 5000 | CL164: 0 | CM164: 5000
A165: 103B | H165: C | J165: 880 | R165: 0 | S165: 5000 | T165: 5000 | CL165: 0 | CM165: 5000
A166: 104 | H166: D | J166: 2040 | M166: mail | R166: 0 | S166: 10000 | T166: 10000 | CL166: 0 | CM166: 10000
A167: 105A | H167: E | J167: 6550 | M167: mail | R167: 0 | S167: 5000 | T167: 5000 | CL167: 0 | CM167: 5000
A168: 105B | H168: F | M168: mail | R168: 0 | S168: 5000 | T168: 5000 | CL168: 0 | CM168: 5000
A169: 106A | H169: G | R169: 0 | S169: 5000 | T169: 5000 | CL169: 0 | CM169: 5000
A170: 106B | H170: H | J170: 2505 | R170: 0 | S170: 5000 | T170: 5000 | CL170: 0 | CM170: 5000
A171: 107 | H171: I | R171: 0 | S171: 10000 | T171: 10000 | CL171: 0 | CM171: 10000
A172: 108 | H172: J | J172: 2675 | M172: mail | R172: 0 | S172: 10000 | T172: 10000 | CL172: 0 | CM172: 10000
A173: 109 | H173: K | J173: 30115 | M173: mail | R173: 0 | S173: 10000 | T173: 10000 | CL173: 0 | CM173: 10000
A174: 110A | H174: L | J174: 1769 | M174: mail | R174: 0 | S174: 5000 | T174: 5000 | CL174: 0 | CM174: 5000
A175: 110B | H175: M | M175: mail | R175: 0 | S175: 5000 | T175: 5000 | CL175: 0 | CM175: 5000
A176: 111A | G176: 2015-09-01 | H176: N | J176: 14821 | M176: mail | R176: 0 | S176: 5000 | T176: 5000 | CL176: 0 | CM176: 5000
A177: 111B | H177: O | J177: 6054 | R177: 0 | S177: 5000 | T177: 5000 | CL177: 0 | CM177: 5000
A178: 112A | H178: P | M178: mail | R178: 0 | S178: 5000 | T178: 5000 | CL178: 0 | CM178: 5000
A179: 112B | H179: Q | R179: 0 | S179: 5000 | T179: 5000 | CL179: 0 | CM179: 5000
A180: 113A | H180: R | M180: * | R180: 0 | S180: 5000 | T180: 5000 | CL180: 0 | CM180: 5000
A181: 113B | H181: S | R181: 0 | S181: 5000 | T181: 5000 | CL181: 0 | CM181: 5000
A182: 114A | H182: T | J182: 2674 | M182: mail | R182: 0 | S182: 5000 | T182: 5000 | CL182: 0 | CM182: 5000
A183: 114B | H183: U | M183: mail | R183: 0 | S183: 5000 | T183: 5000 | CL183: 0 | CM183: 5000
A184: 115A | H184: V | J184: 14312 | M184: mail | R184: 0 | S184: 5000 | T184: 5000 | CL184: 0 | CM184: 5000
A185: 115B | H185: W | J185: 1523 | M185: mail | R185: 0 | S185: 5000 | T185: 5000 | CL185: 0 | CM185: 5000
A186: 116A | H186: X | J186: 18392 | M186: mail | R186: 0 | S186: 5000 | T186: 5000 | CL186: 0 | CM186: 5000
A187: 116B | H187: Y | J187: 18392 | M187: mail | R187: 0 | S187: 5000 | T187: 5000 | CL187: 0 | CM187: 5000
A188: 117 | H188: Z | M188: mail | R188: 0 | S188: 10000 | T188: 10000 | CL188: 0 | CM188: 10000
A189: 118A | H189: A | R189: 0 | S189: 5000 | T189: 5000 | CL189: 0 | CM189: 5000
A190: 118B | H190: B | R190: 0 | S190: 5000 | T190: 5000 | CL190: 0 | CM190: 5000
A191: 119A | H191: C | J191: 7426 | M191: mail | R191: 0 | S191: 5000 | T191: 5000 | CL191: 0 | CM191: 5000
A192: 119B | H192: D | J192: 2956 | M192: mail | R192: 0 | S192: 5000 | T192: 5000 | CL192: 0 | CM192: 5000
A193: 120A | H193: E | R193: 0 | S193: 5000 | T193: 5000 | CL193: 0 | CM193: 5000
A194: 120B | H194: F | R194: 0 | S194: 5000 | T194: 5000 | CL194: 0 | CM194: 5000
A195: 121A | H195: G | J195: 10421 | M195: mail | R195: 0 | S195: 5000 | T195: 5000 | CL195: 0 | CM195: 5000
A196: 121B | H196: H | J196: 11618 | R196: 0 | S196: 5000 | T196: 5000 | CL196: 0 | CM196: 5000
A197: 122A | H197: I | M197: mail | R197: 0 | S197: 5000 | T197: 5000 | CL197: 0 | CM197: 5000
A198: 122B | H198: J | J198: 27026 | M198: mail | R198: 0 | S198: 5000 | T198: 5000 | CL198: 0 | CM198: 5000
A199: 123 | H199: K | J199: 5565 | M199: mail | R199: 0 | S199: 10000 | T199: 10000 | CL199: 0 | CM199: 10000
A200: 124A | H200: L | J200: 18039 | M200: mail | R200: 0 | S200: 5000 | T200: 5000 | CL200: =AH200+AM200+AR200+AW200+BB200+BG200+BL200+BQ200+BV200+CA200+CF200+CK200 -> 0 | CM200: =T200-(V200+Y200+AB200+AH200+AM200+AR200+AW200+BB200+BG200+BL200+BQ200+BV200+CA200+CF200+CK200) -> 5000
A201: 124B | H201: M | J201: 1499 | M201: mail | R201: 0 | S201: =IF(ISNUMBER(A201),$S$5,$S$4) -> 5000 | T201: =R201+S201 -> 5000 | CL201: 0 | CM201: 5000
... 244 more rows

Sheet Feuil2

Sheet Feuil3
